Cogmind - Beta 13 @@@ ROGUE MODE // 2024.03.31 @ 13:28:04 Player: Yovador Result: Destroyed by G-47 Trooper with Particle Gun Performance ------------- Evolutions (0) 0 Regions Visited (1) 200 Robots Destroyed (19) 95 Value Destroyed (372) 372 Prototype IDs (0) 0 Alien Tech Used (0) 0 Bonus (0) 0 TOTAL SCORE: 667 Bonus ------- None Cogmind --------- Core Integrity 0/250 Matter 202/300 Energy 100/100 System Corruption 1% Temperature Cool (9) Movement Core (1350) Ox26 Location -10/Materials Parts ------- > --- POWER (1) -------- (None) > --- PROPULSION (2) --- (None) > --- UTILITY (2) ------ Huge Storage Unit Signal Interpreter > --- WEAPON (2) ------- (None) > --- INVENTORY (25) --- Light Ion Engine Light Ion Engine Wheel Compact Wheel Peak State ------------ > --- POWER ------------ Light Nuclear Core > --- PROPULSION ------- Aluminum Leg Aluminum Leg > --- UTILITY ---------- Huge Storage Unit Signal Interpreter > --- WEAPON ----------- Assault Rifle Grenade Launcher > --- INVENTORY -------- Light Ion Engine Light Ion Engine Wheel Compact Wheel [Rating: 9] Favorites ----------- Power Light Ion Engine Engine Light Ion Engine Power Core Light Nuclear Core Propulsion Aluminum Leg Leg Aluminum Leg Utility Signal Interpreter Storage Huge Storage Unit Processor Signal Interpreter Weapon EM Pulse Gun Energy Gun EM Pulse Gun Ballistic Gun Assault Rifle Launcher Grenade Launcher Build | -11 -10 ------- Run | Yrd Mat Slots Evolved . | . . Power . | . . Propulsion . | . . Utility . | . . Weapon . | . . Parts Attached 10 | 5 5 Power 2 | 1 1 Engine 1 | 1 . Core 1 | . 1 Reactor . | . . Propulsion 2 | 2 . Treads . | . . Leg 2 | 2 . Wheel . | . . Hover . | . . Flight . | . . Utility 2 | . 2 Device . | . . Storage 1 | . 1 Processor 1 | . 1 Hackware . | . . Protection . | . . Artifact . | . . Weapon 4 | 2 2 Energy Gun 1 | 1 . Energy Cannon . | . . Ballistic Gun 2 | 1 1 Ballistic Cannon . | . . Launcher 1 | . 1 Special Weapon . | . . Impact Weapon . | . . Slashing Weapon . | . . Piercing Weapon . | . . Special Melee Weapon . | . . Unidentified Prototypes . | . . Parts Lost 6 | . 6 Power 1 | . 1 Propulsion 2 | . 2 Utility . | . . Weapon 3 | . 3 Highest Loss Streak 5 | . 5 To Critical Strikes . | . . Average Slot Usage (%) 81 | . 81 Engine 11 | . 11 Leg 25 | . 25 Storage 7 | . 7 Processor 8 | . 8 Energy Gun 9 | . 9 Ballistic Gun 3 | . 3 Launcher 11 | . 11 Naked Turns . | . . Heaviest Build 90 | 7 90 Greatest Support 20 | 20 20 Greatest Overweight (x) 27 | . 27 Average Overweight (x) . | . 1 Largest Inventory Capacity 25 | 5 25 Average Capacity 13 | 5 15 Most Carried 5 | 5 5 Average Carried 3 | 2 3 Final Capacity 25 | 5 25 Final Carried 4 | 3 4 Class Distribution -------------------- 100% | Mutant Dominant Class ---------------- Mutant | -10/Materials Resources | -11 -10 ----------- Run | Yrd Mat Matter Collected 343 | 272 71 Remotely . | . . Salvage Created 475 | 54 421 Parts 30 | 2 28 Haulers Intercepted . | . . Recyclers Shooed . | . . Parts Field Recycled . | . . Retrieved Matter . | . . Parts Self-Destructed . | . . Prevented . | . . Kills | -11 -10 ------- Run | Yrd Mat Combat Hostiles Destroyed 9 | 1 8 Guns 2 | 1 1 AOE 7 | . 7 Classes Destroyed 6 | 2 4 Worker 5 | 1 4 Builder 2 | . 2 Recycler 1 | . 1 Operator 1 | . 1 Watcher 1 | . 1 Grunt 9 | 1 8 Best Kill Streak 6 | 2 6 Combat Bots Only 3 | 1 3 Max Kills in Single Turn 5 | 1 5 Gunslinging . | . . Exploded 2 | . 2 Melee . | . . Uniques/NPCs Destroyed . | . . Combat | -11 -10 -------- Run | Yrd Mat Hostile Shots Fired 66 | 10 56 Missed 19 | 8 11 Damage Taken 735 | 22 713 Core 259 | . 259 Absorbed by Shields . | . . Core Remaining (%) 100 | 100 . Volleys Fired 36 | 10 26 Largest 2 | 2 2 Hottest 70 | 60 70 Shots Fired 54 | 20 34 Gun 46 | 20 26 Cannon . | . . Launcher 8 | . 8 Special . | . . Kinetic 28 | 10 18 Thermal . | . . Explosive 8 | . 8 Electromagnetic 18 | 10 8 Robot Hit Streak 6 | 6 5 Robot Miss Streak 3 | 3 3 Penetration Max . | . . Secondary Targets . | . . Shots Hit Robots 29 | 11 18 Core Hits 26 | 2 24 Critical Kills . | . . Critical Parts Destroyed . | . . Critical Strikes . | . . Melee Attacks . | . . Impact . | . . Slashing . | . . Piercing . | . . Sneak Attacks . | . . Combat Hostiles . | . . Follow-up Attacks . | . . Damage Inflicted 875 | 170 705 Guns 383 | 166 217 Cannons . | . . Explosions 488 | . 488 Melee . | . . Ramming 4 | 4 . Kinetic 274 | 100 174 Thermal . | . . Explosive 488 | . 488 Electromagnetic 109 | 66 43 Impact . | . . Slashing . | . . Piercing . | . . Highest Corruption 1 | . 1 Average Corruption 1 | . 1 Corruption Purged . | . . Corruption Blocked . | . . Effects 4 | . 4 Matter Fused 2 | . 2 Heat Flow Errors 1 | . 1 Energy Discharges 1 | . 1 Overload Shots . | . . Overflow Damage . | . . Projectiles . | . . Explosions . | . . Melee . | . . Knockbacks . | . . Impact . | . . Kinetic . | . . Secondary . | . . Self-Inflicted Damage 72 | . 72 Shots 4 | . 4 Rammed . | . . Targets Rammed 2 | 2 . Kicked 2 | 2 . Crushed . | . . Highest Temperature 270 | 6 270 Average Temperature 40 | 6 59 Received Heat Transfer 378 | 12 366 Siege Activations . | . . Robots Corrupted . | . . Combat Hostiles . | . . Parts Fried . | . . Impact Corruptions . | . . Robots Melted . | . . Combat Hostiles . | . . Parts Melted . | . . Heat Transferred . | . . Parts Sabotaged . | . . Parts Stolen . | . . Parts Stripped . | . . Power Chain Reactions . | . . Alert | -11 -10 ------- Run | Yrd Mat Peak Influence 305 | 25 305 Initial 16 | . 16 Average 77 | 3 104 Maximum Alert Level 1 | . 1 Low Security (%) 91 | 100 88 Level 1 8 | . 11 Level 2 . | . . Level 3 . | . . Level 4 . | . . Level 5 . | . . High Security . | . . Max Security . | . . Squads Dispatched 2 | . 2 Investigation 1 | . 1 Extermination . | . . Reinforcement 1 | . 1 Assault . | . . Garrison . | . . Intercept . | . . Searches Triggered . | . . Construction Impeded . | . . Haulers Reinforced . | . . Active Scanning Responses . | . . Cargo Convoy Interrupts . | . . Stealth | -11 -10 --------- Run | Yrd Mat Distress Signals 1 | . 1 Communications Jammed . | . . Distress Signals . | . . Times Spotted 12 | 1 11 Peak Tracking Total 4 | 1 4 Tactical Retreats . | . . Traps | -11 -10 ------- Run | Yrd Mat Traps Triggered . | . . Indirectly . | . . Trap Hack Attempts . | . . Triggered . | . . Disarmed . | . . Reprogrammed . | . . Reused . | . . Traps Extracted . | . . Installed . | . . Triggered . | . . Machines | -11 -10 ---------- Run | Yrd Mat Machines Disabled . | . . Max in Single Turn . | . . Machines Repaired . | . . Machines Dismantled . | . . Machines Sabotaged . | . . Overloaded Fab Kills . | . . Hacking | -11 -10 --------- Run | Yrd Mat Machines Accessed 4 | . 4 Terminals 3 | . 3 Fabricators . | . . Repair Stations 1 | . 1 Recycling Units . | . . Scanalyzers . | . . Garrison Access . | . . Total Hacks 13 | . 13 Successful 5 | . 5 Failed 8 | . 8 Catastrophic 2 | . 2 Database Lockouts . | . . Manual . | . . Terminals 12 | . 12 Fabricators . | . . Repair Stations 1 | . 1 Recycling Units . | . . Scanalyzers . | . . Garrison Access . | . . Terminal Hacks 4 | . 4 Locate Traps 1 | . 1 Hauler Manifests 1 | . 1 Registered Components 1 | . 1 Zone Layout 1 | . 1 Fabricator Hacks . | . . Repair Station Hacks 1 | . 1 Scan Component 1 | . 1 Recycling Unit Hacks . | . . Scanalyzer . | . . Garrison Access Hacks . | . . Unauthorized Hacks . | . . Terminals . | . . Fabricators . | . . Repair Stations . | . . Recycling Units . | . . Scanalyzers . | . . Garrison Access . | . . Data Cores Recovered 1 | . 1 Used . | . . Hacking Detections 3 | . 3 Full Trace Events 2 | . 2 Feedback Events 1 | . 1 Corruption 1 | . 1 Feedback Blocked . | . . Robot Schematics Acquired . | . . Robots Built . | . . Authchips . | . . Time . | . . Total Robot Build Rating . | . . Part Schematics Acquired . | . . Parts Built . | . . Authchips . | . . Time . | . . Total Part Build Rating . | . . Parts Repaired . | . . Time . | . . Parts Recycled . | . . Recycled Matter . | . . Retrieved Matter . | . . Retrieved Components . | . . Parts Scanalyzed . | . . Part Schematics Acquired . | . . Parts Damaged . | . . Bothacking | -11 -10 ------------ Run | Yrd Mat Used RIF Installer . | . . Robots Hacked . | . . Non-combat . | . . Combat . | . . Robot Hacks Applied . | . . Relay Couplers Released . | . . Fabnet Peak Effective % . | . . Robots Rewired . | . . Allies Hacked . | . . Hacks Repelled . | . . Allies | -11 -10 -------- Run | Yrd Mat Total Allies . | . . Largest Group . | . . Highest-Rated Group . | . . Highest-Rated Ally . | . . Total Orders . | . . Ally Attacks . | . . Total Damage . | . . Kills . | . . Allies Corrupted . | . . Allies Melted . | . . Intel | -11 -10 ------- Run | Yrd Mat Robot Analysis Total . | . . Derelict Logs Recovered . | . . Drone Launches . | . . Drone Recoveries . | . . Exploration | -11 -10 ------------- Run | Yrd Mat Turns Passed 649 | 170 479 Spaces Moved 338 | 125 213 Core 37 | 35 2 Treads . | . . Legs 301 | 90 211 Wheels . | . . Hover . | . . Flight . | . . Fastest Speed 50 | 50 120 Average Speed 156 | 100 189 Slowest Speed 1400 | 120 1400 Overloaded Moves . | . . Propulsion Burnouts . | . . Robots Hopped . | . . Cave-ins Triggered . | . . Exploration Rate (%) 21 | 7 36 Regions Visited 1 Branch Regions . Pre-discovered Areas . | . . Known Exits Taken . | . . Unknown Exits Taken 1 | 1 . Scrap Searched . | . . Spaces Dug . | . . Terrain Destroyed 46 | . 46 Melee . | . . Projectile . | . . AOE 46 | . 46 Terrain Rammed . | . . Walls Destroyed . | . . Machines Disabled . | . . Actions | -11 -10 --------- Run | Yrd Mat Total 403 | 149 254 Wait 4 | . 4 Move 337 | 124 213 Hop . | . . Pick Up 13 | 8 5 Fast Attach . | . . Attach 8 | 5 3 Detach . | . . Swap 2 | . 2 Drop 1 | . 1 Fire 36 | 10 26 Melee . | . . Ram . | . . Kick 2 | 2 . Crush . | . . Escape Stasis . | . . Rewire . | . . Trap . | . . Miscellaneous . | . . Route ------- -11/Scrapyard -10/Materials (discovered 1 exit: [*Mat]) History --------- Turn | Location | Event 2 | -11/Scrapyard | Met Revision 17 125 | -11/Scrapyard | Discovered new exit (range 8) 171 | -11/Scrapyard | Entered Materials 279 | -10/Materials | Discovered new exit (range 7) 300 | -10/Materials | Build established: Mutant 621 | -10/Materials | Core integrity fell below 50% 643 | -10/Materials | Core integrity fell below 20% 650 | -10/Materials | Destroyed by G-47 Trooper with Particle Gun Last Messages --------------- Sml. Laser crushed. K-01 Serf collects debris. U-05 Engineer lays Concrete. K-01 Serf collects debris. U-05 Engineer lays Concrete. K-01 Serf collects debris. U-05 Engineer lays Concrete. U-05 Engineer builds a Wall. K-01 Serf collects debris. K-01 Serf destroyed. Assault Rifle destroyed. U-05 Engineer lays Concrete. The unstable cave ceiling collapses. U-05 Engineer lays Concrete. U-05 Engineer builds a Wall. U-05 Engineer lays Concrete. K-01 Serf collects debris. U-05 Engineer lays Concrete. K-01 Serf collects debris. U-05 Engineer lays Concrete. Map ----- +----------------------------------------------------+ | ?????????????????????????????????????????????????? | | ?????????????????????????????????????????????????? | | ?????????????????????????????????????????????????? | | ?????????????????????????????????????????????????? | | ?????????????????????????????????????????????????? | | ?????????????????????????????????????????????????? | | ??????????????????????????? =????????????????????? | | ??????????????????????????? ????????????????????? | | ??????????????????????????? ????????????????????? | | ??????????????????????????? ????????????????????? | | ???????????????????????#### ##?????##????????????? | | ??????????????????????## ????? ?????????????? | | ??????????????????????## k ???? ??????????????? | | ??????????????????????## != ??? ???????????????? | | ????????????????????### =%#####+##??????????????? | | ????????????????????? # %# ??????????????? | | ?????????????????????? # """ #????????????? | | ???????????????????????u """ ?????????????? | | ???????????????????????#% # ] """ ?????????????? | | ??????????????????????##= # ??????????????? | | ??????????????????????##!%= """ ??????????????? | | ??????????????????????##%=|# """ ??????????????? | | ??????????????????????##g=%# """ #????????????? | | ??????????????????????##%=*! #????????????? | | ???????????##+##########%==########??????????????? | | ?????????? *@! #????????????????????? | | ?????????? ^ u##????????????????????? | | ?????????? o^ #?????????????????????? | | ???????????##+######+### #?????????????????????? | | ?????????????????? ???# #?????????????????????? | | ???????????????? "????# #?????????????????????? | | ???????????????# ?????# #?????????????????????? | | ???????????????# ??????# #?????????????????????? | | ???????????????????????# #?????????????????????? | | ???????????#+########### #?????????????????????? | | ???????????# ## # #?????????????????????? | | ???????????# ## # #?????????????????????? | | ????######## ## # #?????????????????????? | | ????# = ## + k#?????????????????????? | | ????# # ## """ # #?????????????????????? | | ????# # ## """"" # #?????????????????????? | | ????# # ## """"" # #?????????????????????? | | ????# # + """"" # #?????????????????????? | | ##??# # ## """ # #?????????????????????? | | ?#+#+#### ##### ##### #?????????????????????? | | # ^ #### #?# ########### #???????? | | # ^ #?# !/ #???????? | | ??# # ! [ #?# !/ ^ #???????? | | ??##### ^=%% = = #?#"" """ ?????????? | | ??????# =!% #?#"Y """??????????? | +----------------------------------------------------+ Best States ------------- Heat Dissipation 25 Energy Generation 14 Energy Capacity 160 Matter Stores 300 Matter Capacity 300 Sight Range 16 Terrain Scan Density 10 Evasion (%) 55 Item Schematics ----------------- None Robot Schematics ------------------ None Fabricated ------------ Nothing Alien Tech Used ----------------- None Achievements -------------- Shopping List Challenges ------------ None Game ------ Seed EnergyScatterPropulsion Manual? 0 Play Time 00:08:56 Cumulative 1.2 hours Start 2024.03.31 @ 13:20:57 End 2024.03.31 @ 13:28:04 Sessions 1 Manual Loads 0 Difficulty Rogue Special Mode None Game No. 3 Rogue 3 Adventurer 0 Explorer 0 Win Type - Total 0 Types 0/0/0/0/0/0/0/0/0 Lore% 0 Gallery% 3 Achievement% 3 Wizard Run 0 Options --------- Layout 1 ASCII 0 Keyboard 0 Movement Mouse Keybinds 0 Fullscreen 1 Font 24/Smallcaps Map View 50x35 Zoom Use 0% Tactical HUD 0 Map Filters NONE Filters NONE Steam 1 RUN: ec1d8e11-6742-4ca2-bb22-997f18b12d30